bitfinex-derivatives/quotes_ETHF0:USTF0_20251007
["timestamp","ask_amount","ask_price","bid_price","bid_amount"]
[1759818690931,6.59253934,4679.1,4679.0,1.5821]
[1759818691228,6.28033934,4679.1,4679.0,1.5821]
[1759818692025,7.03833934,4679.1,4679.0,1.4041]
[1759818693929,7.03833934,4679.1,4678.5,0.178]
[1759818694121,1.0525,4678.7,4678.6,0.67834]
[1759818694620,1.0525,4678.7,4678.6,1.13644]
[1759818695027,1.0525,4678.7,4678.6,1.42064]
[1759818695523,3.2078,4679.1,4679.0,0.5566]
[1759818695832,3.5159,4679.1,4679.0,1.596]
[1759818696227,4.2688,4679.1,4679.0,1.596]
[1759818698636,3.4967,4679.1,4679.0,1.596]
[1759818699337,3.2078,4679.1,4679.0,1.596]
[1759818700029,3.2078,4679.1,4679.0,6.596]
[1759818700837,3.2078,4679.7,4679.6,1.42825]
[1759818701131,3.4967,4679.7,4679.6,1.64425]
[1759818701334,4.2352,4679.7,4679.6,1.64425]
[1759818701534,4.2352,4679.7,4679.6,1.42825]
[1759818701837,4.2352,4679.7,4679.6,1.64425]
[1759818702643,4.2352,4679.7,4679.6,1.2598]
[1759818703237,4.2352,4679.7,4679.6,0.7353]
[1759818703437,4.2352,4679.7,4679.6,0.2812]
[1759818704239,4.2352,4679.7,4679.6,0.7353]
[1759818706635,1.0274,4679.1,4679.0,0.7353]
[1759818706840,1.0274,4679.1,4679.0,1.1198]
[1759818709441,3.2078,4679.2,4679.1,1.0438]
[1759818709741,4.2352,4679.2,4679.1,1.0438]
[1759818711947,4.2352,4679.2,4679.1,0.7353]
[1759818713443,0.5834,4679.2,4679.1,1.0438]
[1759818713751,3.4967,4679.7,4679.6,1.0438]
[1759818713946,3.7912,4679.7,4679.6,1.0438]
[1759818714652,3.4967,4679.7,4679.6,1.0438]
[1759818715849,3.2078,4679.7,4679.6,1.0438]
[1759818716048,3.7912,4680.4,4680.3,1.4282]
[1759818716540,4.2352,4680.4,4680.3,1.4282]
[1759818718050,3.2078,4680.4,4680.3,1.4282]
[1759818718446,3.4967,4680.4,4680.3,1.4282]
[1759818718850,3.2078,4680.4,4680.3,1.4282]
[1759818719044,3.4967,4680.4,4680.3,1.4282]
[1759818719249,3.2078,4680.4,4680.3,1.4282]
[1759818719452,0.00152713,4680.6,4680.5,1.15028]
[1759818719753,0.00152713,4680.6,4680.5,1.60438]
[1759818722754,0.00152713,4680.6,4680.5,6.60438]
[1759818723954,0.00152713,4680.6,4680.5,6.81938]
[1759818726346,1.01752713,4680.6,4680.5,1.42818]
[1759818726550,1.01752713,4680.6,4680.5,0.38438]
[1759818726849,1.01752713,4680.6,4680.5,1.12768]
[1759818728157,1.01752713,4680.6,4680.5,1.41038]
[1759818730463,0.60242713,4680.6,4680.5,1.58318]
[1759818730661,0.29902713,4680.6,4680.5,1.58318]
[1759818731157,0.00152713,4680.6,4680.5,1.58318]
[1759818731552,0.29902713,4680.6,4680.5,1.58318]
[1759818731756,1.01752713,4680.6,4680.5,1.12768]
[1759818731951,1.01752713,4680.6,4680.5,0.38438]
[1759818733065,1.01752713,4680.6,4680.5,1.41038]
[1759818734464,0.60242713,4680.6,4680.5,1.58318]
[1759818734765,0.00152713,4680.6,4680.5,1.58318]
[1759818740371,0.2975,4681.8,4681.7,1.41028]
[1759818740569,0.2975,4681.8,4681.7,1.62528]
[1759818740765,1.016,4681.8,4681.7,0.38428]
[1759818741271,1.01860582,4681.8,4681.7,0.386878]
[1759818741666,1.01860582,4681.8,4681.7,0.002598]
[1759818741974,1.54190673,4681.8,4681.7,0.002598]
[1759818742162,6.54190673,4681.8,4681.7,0.002598]
[1759818743273,1.54190673,4681.8,4681.7,1.028598]
[1759818744072,1.54190673,4681.8,4681.7,0.745898]
[1759818745971,1.54190673,4681.8,4681.7,1.028598]
[1759818747364,1.12680673,4681.8,4681.7,1.028598]
[1759818747677,0.00260582,4681.8,4681.7,1.028598]
[1759818748768,0.00260582,4681.8,4681.7,6.028598]
[1759818748971,3.2078,4682.4,4682.3,1.41023]
[1759818749176,3.73193524,4682.4,4682.3,1.41023]
[1759818749479,3.5053,4682.4,4682.3,1.41023]
[1759818749668,4.0267134,4682.4,4682.3,1.41023]
[1759818749870,4.02921474,4682.4,4682.3,1.41023]
[1759818750068,3.21030134,4682.4,4682.3,1.41023]
[1759818751476,0.00250134,4682.4,4682.3,1.41023]
[1759818752081,0.6009,4683.2,4683.1,0.66687]
[1759818752371,0.6009,4683.2,4683.1,1.41017]
[1759818752577,1.016,4683.2,4683.1,1.41017]
[1759818753079,1.01828278,4683.2,4683.1,1.41017]
[1759818753470,0.00228278,4683.2,4683.1,1.41017]
[1759818754879,0.00228278,4683.2,4683.1,1.62517]
[1759818755270,0.28798278,4683.2,4683.1,1.62517]
[1759818755577,0.00228278,4683.2,4683.1,1.62517]
[1759818756878,0.9696,4684.4,4684.3,0.2832]
[1759818757076,0.9696,4684.4,4684.0,0.414]
[1759818757270,0.4211,4684.3,4684.0,0.79809]
[1759818757470,0.9947,4684.1,4684.0,0.79809]
[1759818757677,0.9947,4684.1,4684.0,1.06999]
[1759818757867,0.99732921,4684.1,4684.0,1.06999]
[1759818758479,0.99732921,4684.1,4684.0,1.36969]
[1759818758677,0.28562921,4684.1,4684.0,1.54239]
[1759818760679,0.99732921,4684.1,4684.0,1.58469]
[1759818760978,0.99732921,4684.1,4684.0,1.75739]
[1759818761173,0.57622921,4684.1,4684.0,1.75739]
[1759818761477,0.28562921,4684.1,4684.0,1.75739]
[1759818761867,0.00262921,4684.1,4684.0,1.75739]
[1759818765972,3.7814,4684.5,4684.4,0.2719]
[1759818766172,4.2025,4684.5,4684.4,0.9009]
[1759818766373,4.2025,4684.5,4684.4,1.2006]
[1759818766970,3.49336894,4684.5,4684.4,1.2006]
[1759818767776,3.21036894,4684.5,4684.4,1.2006]
[1759818767977,0.00256894,4684.5,4684.4,1.2006]
[1759818769578,3.2078,4685.0,4684.9,1.36962]
[1759818769773,3.4908,4685.0,4684.9,1.58462]
[1759818770581,3.49278153,4685.0,4684.9,1.58462]
[1759818772282,3.20978153,4685.0,4684.9,1.58462]
[1759818772584,3.49278153,4685.0,4684.9,1.58462]
[1759818773176,3.91388153,4685.0,4684.9,1.58462]
[1759818774277,3.49278153,4685.0,4684.9,1.58462]
[1759818774478,4.20448153,4685.0,4684.9,0.9856]
[1759818774779,4.76259153,4685.0,4684.5,0.38405]
[1759818774979,4.76259153,4685.0,4684.7,0.414]
[1759818775180,4.34149153,4685.0,4684.6,0.38404]
[1759818775374,0.9947,4684.9,4684.8,0.9856]
[1759818776379,0.9947,4684.9,4684.8,1.2006]
[1759818777580,0.5736,4684.9,4684.8,1.2006]
[1759818778186,0.283,4684.9,4684.8,1.2006]
[1759818779784,3.20978153,4685.0,4684.9,1.36962]
[1759818780986,4.20448153,4685.0,4684.9,1.58462]
[1759818781589,3.78338153,4685.0,4684.9,1.58462]
[1759818781791,3.49278153,4685.0,4684.9,1.58462]
[1759818782695,3.49278153,4685.0,4684.9,1.36962]
[1759818782893,3.20978153,4685.0,4684.9,1.58462]
[1759818784696,0.00198153,4685.0,4684.9,1.58462]
[1759818785295,3.6262,4686.2,4685.6,0.4012]
[1759818785494,0.4184,4684.7,4684.5,0.4012]
[1759818785699,1.0042,4684.6,4684.5,0.215]
[1759818785887,1.0042,4684.0,4683.8,0.3841]
[1759818786093,1.1742,4684.0,4683.8,0.3841]
[1759818786388,1.00585963,4684.0,4683.9,0.8944]
[1759818786588,1.00585963,4684.0,4683.9,1.1727]
[1759818786796,1.00585963,4684.0,4683.9,0.9577]
[1759818787001,1.00585963,4684.0,4683.9,1.1727]
[1759818788994,0.58745963,4684.0,4683.9,1.1727]
[1759818789193,1.00585963,4684.0,4683.9,1.1727]
[1759818790089,0.58745963,4684.0,4683.9,1.1727]
[1759818790295,0.29755963,4684.0,4683.9,1.1727]
[1759818791801,0.00165963,4684.0,4683.9,1.1727]
[1759818792003,0.29755963,4684.0,4683.9,1.1727]
[1759818793492,0.00165963,4684.0,4683.9,1.1727]
[1759818793703,0.00165963,4684.0,4683.9,4.3805]
[1759818795092,0.4184,4684.8,4683.9,4.1023]
[1759818795298,1.0042,4684.8,4684.7,0.6794]
[1759818795498,1.52084334,4684.8,4684.7,1.27843]
[1759818796298,1.00656572,4684.8,4684.7,1.27843]
[1759818798703,0.29826572,4684.8,4684.7,1.55673]
[1759818799797,0.00236572,4684.8,4684.7,1.55673]
[1759818806118,0.7143,4685.5,4685.4,1.34168]
[1759818806406,1.0042,4685.5,4685.4,1.55668]
[1759818806906,0.2959,4685.5,4685.4,1.55668]
[1759818807110,0.29838834,4685.5,4685.4,1.55668]
[1759818807606,1.17668834,4685.5,4685.4,0.38398]
[1759818807805,6.17668834,4685.5,4685.4,0.38398]
[1759818808004,6.17668834,4685.5,4685.4,0.59898]
[1759818808210,6.17668834,4685.5,4685.4,0.38398]
[1759818808515,1.17668834,4685.5,4685.4,0.38398]
[1759818808812,1.17668834,4685.5,4685.4,1.06338]
[1759818809609,1.17668834,4685.5,4685.4,0.59898]
[1759818809816,1.17668834,4685.5,4685.0,0.38401]
[1759818809817,1.0042,4685.1,4685.0,0.38401]
[1759818810117,4.212,4685.1,4685.0,0.38401]
[1759818812612,0.5858,4684.3,4684.2,0.38407]
[1759818812809,1.0042,4684.3,4684.2,0.38407]
[1759818815417,0.969,4683.9,4683.8,0.67707557]
[1759818815617,0.969,4683.9,4683.8,1.07237557]
[1759818816715,5.969,4683.9,4683.8,0.00266557]
[1759818816916,0.969,4683.3,4683.0,0.38417]
[1759818817113,0.5621,4682.8,4682.7,0.215]
[1759818817417,0.9566,4682.7,4682.6,0.6835]
[1759818817617,0.9566,4682.7,4682.6,0.8985]
[1759818817815,0.9566,4682.7,4682.6,0.90084366]
[1759818818011,0.9566,4682.7,4682.6,0.91034366]
[1759818818319,0.9566,4682.7,4682.6,0.68584366]
[1759818822419,0.9566,4682.7,4682.6,0.97494366]
[1759818823621,4.1644,4682.7,4682.6,0.97494366]
[1759818823816,4.1644,4682.7,4682.6,0.00234366]
[1759818825118,9.1644,4682.7,4682.6,0.00234366]
[1759818825324,11.94220653,4682.7,4682.6,0.00234366]
[1759818826217,11.94220653,4682.7,4681.5,0.38429]
[1759818826218,0.9566,4681.6,4681.5,0.38429]
[1759818827216,0.88565594,4681.6,4681.5,1.52506582]
[1759818827522,1.28015594,4681.6,4681.5,1.35956582]
[1759818828022,6.28015594,4681.6,4681.5,0.38696582]
[1759818828425,1.28015594,4681.6,4681.5,0.38696582]
[1759818828824,1.28015594,4681.6,4681.5,0.00267582]
[1759818831021,1.28015594,4681.6,4681.5,0.68617582]
[1759818832423,0.32355594,4681.6,4681.5,6.14077582]
[1759818832822,0.28982768,4681.6,4681.5,6.14077582]
[1759818833020,3.481,4682.7,4682.6,0.9726]
[1759818833224,4.1644,4682.7,4682.6,1.35681]
[1759818833928,4.16673612,4682.7,4682.6,1.35681]
[1759818835027,1.1178,4682.5,4682.4,0.38422]
[1759818835414,1.1178,4682.5,4682.0,0.4039]
[1759818835618,1.1178,4682.5,4682.3,0.38422]
[1759818837018,0.3945,4682.4,4682.3,1.06772]
[1759818837226,0.9566,4682.4,4682.3,1.06772]
[1759818837626,0.9566,4682.4,4682.3,0.38422]
[1759818838116,0.9566,4682.4,4682.2,0.38424]
[1759818838919,3.70530286,4682.3,4682.2,0.38424]
[1759818839424,0.9566,4682.3,4682.2,1.35684]
[1759818840329,3.21013612,4682.7,4682.6,0.38421]
[1759818840630,3.21013612,4682.7,4682.6,1.35681]
[1759818841629,4.16673612,4682.7,4682.6,0.38421]
[1759818841826,4.16673612,4682.7,4682.6,1.06771]
[1759818842023,4.16673612,4682.7,4682.6,1.35681]
[1759818843825,3.87783612,4682.7,4682.6,1.35681]
[1759818844121,4.16673612,4682.7,4682.6,0.66381]
[1759818844429,4.16673612,4682.7,4682.6,0.38421]
[1759818844623,6.98258101,4682.7,4682.6,0.38421]
[1759818845826,6.98258101,4682.7,4682.6,1.06631]
[1759818846430,6.98258101,4682.7,4682.6,1.34601]
[1759818846626,6.98258101,4682.7,4682.6,1.06631]
[1759818846826,6.98258101,4682.7,4682.6,0.38421]
[1759818847033,6.98258101,4682.7,4682.0,0.38426]
[1759818847034,0.5252,4682.1,4682.0,0.38426]
[1759818847327,0.9358,4682.1,4682.0,1.06636]
[1759818847729,0.9358,4682.1,4682.0,0.38426]
[1759818847730,4.1436,4682.1,4682.0,0.38426]
[1759818847921,0.4106,4681.9,4681.5,0.00267582]
[1759818848123,0.9358,4681.8,4681.7,0.38428]
[1759818848431,0.9358,4681.8,4681.5,0.38696582]
[1759818848731,4.1436,4681.6,4681.5,0.00267582]
[1759818848930,4.65865462,4681.6,4681.5,0.38697582]
[1759818849128,7.46089776,4681.6,4681.5,1.06907582]
[1759818849324,3.2078,4681.6,4681.5,1.50897582]
[1759818849519,0.6766,4682.1,4682.0,0.38426]
[1759818849728,0.266,4681.8,4681.7,0.38427]
[1759818850032,3.77629574,4681.8,4681.7,0.38427]
[1759818850232,3.77629574,4681.8,4681.7,1.34607]
[1759818850629,3.36569574,4681.8,4681.7,1.34607]
[1759818851230,3.77629574,4681.8,4681.7,1.34607]
[1759818852239,0.9358,4681.8,4681.7,1.34607]
[1759818852438,0.5252,4681.8,4681.7,1.34607]
[1759818852636,3.467,4682.1,4682.0,1.50626]
[1759818852940,3.2078,4682.1,4682.0,1.50626]
[1759818853331,0.6698,4682.5,4682.4,0.66142]
[1759818853533,0.6698,4682.5,4682.4,1.34602]
[1759818854339,0.2592,4682.5,4682.4,1.34602]
[1759818856638,0.9358,4682.5,4682.4,1.34602]
[1759818857242,0.9358,4682.5,4682.4,1.56102]
[1759818857441,0.5252,4682.5,4682.4,1.56102]
[1759818858044,0.2592,4682.5,4682.4,1.56102]
[1759818859038,3.46933612,4682.7,4682.6,0.38421]
[1759818859239,3.46933612,4682.7,4682.6,1.34601]
[1759818862838,3.21013612,4682.7,4682.6,1.34601]
[1759818863439,3.46933612,4682.7,4682.6,1.34601]
[1759818864234,3.21013612,4682.7,4682.6,1.34601]
[1759818864839,6.12e-06,4682.7,4682.6,6.34601]
[1759818865046,1.67170682,4685.1,4682.6,6.34601]
[1759818865047,3.2078,4683.8,4683.7,0.38412]
[1759818865246,3.467,4683.8,4683.7,1.56092]
[1759818866048,3.21000128,4683.8,4683.7,1.56092]
[1759818866745,0.00220128,4683.8,4683.7,1.56092]
[1759818867547,3.2078,4684.3,4684.2,1.34587]
[1759818867748,3.2078,4684.3,4684.2,1.56087]
[1759818868038,3.23705231,4684.3,4684.2,1.56087]
[1759818868245,3.23705231,4684.3,4684.2,6.56087]
[1759818868446,0.03102297,4684.3,4684.2,9.76867]
[1759818869044,2.97e-06,4684.3,4684.2,9.76867]
[1759818869240,3.2078,4685.5,4685.4,1.34578]
[1759818869548,3.2078,4685.5,4685.4,1.56078]
[1759818870246,4.1436,4686.1,4686.0,1.34573]
[1759818870448,4.14532531,4686.1,4686.0,1.56073]
[1759818871843,4.14532531,4686.1,4686.0,1.72093]
[1759818872943,0.26092531,4686.1,4686.0,1.72093]
[1759818873250,0.00172531,4686.1,4686.0,1.72093]
[1759818874147,0.00172531,4686.1,4686.0,1.50593]
[1759818874450,0.00172531,4686.1,4686.0,1.72093]
[1759818875942,0.95862531,4686.1,4686.0,1.56073]
[1759818876638,0.95862531,4686.1,4686.0,1.71733]
[1759818878050,0.92932531,4686.1,4686.0,1.71733]
[1759818878247,0.27082531,4686.1,4686.0,1.71733]
[1759818878446,0.00172531,4686.1,4686.0,4.92513]
[1759818878847,0.2611,4687.1,4687.0,0.79765]
[1759818879047,0.2611,4687.1,4687.0,1.69815]
[1759818879851,0.26279309,4687.1,4687.0,1.69815]
[1759818880050,0.00169309,4687.1,4687.0,1.69815]
[1759818882653,0.26279309,4687.1,4687.0,1.69815]
[1759818883152,0.00169309,4687.1,4687.0,1.69815]
[1759818886349,0.52359309,4687.1,4687.0,1.48315]
[1759818886552,0.91009309,4687.1,4687.0,1.33015]
[1759818886755,0.9084,4685.6,4685.5,1.06947]
[1759818887055,0.1535,4686.5,4685.5,1.06947]
[1759818887056,0.6476,4686.0,4685.9,0.9463]
[1759818887354,0.9084,4686.5,4686.4,1.06939]
[1759818887551,0.9084,4686.5,4686.4,1.54519]
[1759818888150,0.5219,4686.5,4686.4,1.54519]
[1759818889051,0.6476,4686.9,4686.8,0.92306]
[1759818889257,0.2611,4686.9,4686.8,1.54516]
[1759818889456,0.5219,4686.9,4686.8,1.54516]
[1759818889654,0.26279309,4687.1,4687.0,1.48315]
[1759818889848,0.91009309,4687.1,4687.0,0.215]
[1759818890251,0.91009309,4687.1,4685.8,33.288]
[1759818890252,0.2611,4686.3,4686.2,4.1541]
[1759818890457,0.2611,4686.3,4686.2,4.75301]
[1759818890954,0.2611,4686.6,4686.5,1.48319]
[1759818891252,0.3865,4687.0,4686.9,0.2784]
[1759818891253,0.9084,4687.0,4686.9,0.2784]
[1759818891457,1.0619,4687.0,4686.9,0.215]
[1759818891849,1.0619,4687.0,4686.8,0.38386]
[1759818892157,1.0619,4687.0,4686.9,0.215]
[1759818892359,0.00169309,4687.1,4687.0,1.48315]
[1759818892959,0.00169309,4687.1,4687.0,1.69815]
[1759818893155,0.91009309,4687.1,4687.0,1.33015]
[1759818893457,0.91009309,4687.1,4687.0,1.54515]
[1759818894158,0.91009309,4687.1,4687.0,1.33015]
[1759818894452,0.91009309,4687.1,4687.0,1.54515]
[1759818895447,0.91009309,4687.1,4687.0,1.33015]
[1759818895652,0.91009309,4687.1,4687.0,1.54515]
[1759818896249,0.00169309,4687.1,4687.0,1.69815]
[1759818896646,0.26279309,4687.1,4687.0,1.69815]
[1759818897362,0.77717169,4687.1,4687.0,1.69815]
[1759818898758,1.42447169,4687.1,4687.0,0.59885]
[1759818899560,1.42447169,4687.1,4687.0,1.54515]
[1759818899950,0.77717169,4687.1,4687.0,1.69815]
[1759818900552,0.51607169,4687.1,4687.0,1.69815]
[1759818901661,1.69e-06,4687.1,4687.0,1.69815]
[1759818901863,0.022,4687.9,4687.8,1.33008]
[1759818902054,0.022,4687.9,4687.8,1.54508]
[1759818902253,0.2831,4687.9,4687.8,1.54508]
[1759818902463,0.022,4687.9,4687.8,1.54508]
[1759818902761,0.02463371,4687.9,4687.8,1.54508]
[1759818903159,0.28573371,4687.9,4687.8,1.54508]
[1759818903659,0.02463371,4687.9,4687.8,1.54508]
[1759818905363,0.02463371,4687.9,4687.8,1.33008]
[1759818905665,0.02463371,4687.9,4687.8,1.54508]
[1759818906359,3.71e-06,4687.9,4687.8,1.54508]
[1759818906962,3.71e-06,4687.9,4687.8,1.33008]
[1759818907158,3.71e-06,4687.9,4687.8,1.54508]
[1759818909265,3.2078,4689.1,4689.0,0.1648]
[1759818909468,0.9577,4689.6,4689.5,1.05254]
[1759818909662,0.9577,4689.6,4689.0,3.3726]
[1759818909868,0.9577,4689.1,4689.0,1.05258]
[1759818910067,0.9577,4689.1,4689.0,1.26758]
[1759818910269,0.276,4689.7,4689.6,1.30763]
[1759818910464,0.276,4689.7,4689.6,1.52263]
[1759818910465,0.27860935,4689.7,4689.6,1.52263]
[1759818910669,0.00260935,4689.7,4689.6,1.52263]
[1759818911070,0.03184047,4689.7,4689.6,1.52263]
[1759818911671,0.57754047,4689.7,4689.6,1.30763]
[1759818911966,0.5457,4689.2,4689.1,1.05257]
[1759818912270,0.57754047,4689.7,4689.6,1.30763]
[1759818912464,0.30784047,4689.7,4689.6,1.52263]
[1759818912673,0.30784047,4689.7,4689.6,1.30763]
[1759818912674,0.03184047,4689.7,4689.6,1.30763]
[1759818912969,0.03184047,4689.7,4689.6,1.52263]
[1759818913464,0.30784047,4689.7,4689.6,1.52263]
[1759818914772,0.03184047,4689.7,4689.6,1.52263]
[1759818915071,0.57754047,4689.7,4689.6,1.52263]
[1759818915267,0.98954047,4689.7,4689.6,1.30763]
[1759818915475,0.9577,4689.1,4689.0,0.6012039]
[1759818915970,0.98693112,4689.1,4689.0,1.2701039]
[1759818916371,0.98693112,4689.1,4689.0,1.5252039]
[1759818917268,0.98693112,4689.1,4689.0,1.3102039]
[1759818917465,4.19473112,4689.1,4689.0,1.2701039]
[1759818918362,3.51303112,4689.1,4689.0,1.6900039]
[1759818918570,3.23703112,4689.1,4689.0,1.6900039]
[1759818918876,4.19473112,4689.1,4689.0,1.5252039]
[1759818919073,4.19473112,4689.1,4689.0,0.6414039]
[1759818919275,4.19473112,4689.1,4689.0,0.3862039]
[1759818919872,4.19473112,4689.1,4689.0,0.0025239]
[1759818920074,11.97606345,4689.1,4689.0,0.0025239]
[1759818920272,12.46731685,4689.1,4689.0,0.0025239]
[1759818922070,0.2697,4687.7,4687.6,0.4137]
[1759818922271,0.9577,4687.6,4687.5,3.8468]
[1759818922469,0.9577,4687.6,4687.5,4.7306]
[1759818922866,1.3415,4687.6,4687.5,4.3468]
[1759818923072,0.98693112,4687.6,4687.5,0.00220055]
[1759818923878,3.70730746,4687.6,4687.5,0.00220055]
[1759818924674,9.19860546,4687.6,4687.5,0.00220055]
[1759818926379,0.5457,4686.9,4686.3,0.3839]
[1759818926576,0.9577,4686.4,4686.3,1.0528]
[1759818926977,0.9577,4686.4,4686.3,1.3079]
[1759818927172,0.98693112,4686.4,4686.3,1.3079]
[1759818927373,0.98895668,4686.4,4686.3,1.30943914]
[1759818928583,0.98895668,4686.4,4686.3,0.92553914]
[1759818930577,0.98895668,4686.4,4686.3,0.00153914]
[1759818932381,3.75162287,4686.4,4686.3,0.00153914]
[1759818933380,3.75162287,4686.4,4685.2,3.2078]
[1759818933381,1.34166,4685.6,4685.2,3.2078]
[1759818933687,0.276,4684.8,4684.7,0.5103]
[1759818933878,0.276,4684.8,4684.7,1.52303]
[1759818934285,0.30523112,4684.8,4684.7,0.924]
[1759818934486,0.30523112,4684.8,4684.7,1.14070127]
[1759818934993,0.02923112,4684.8,4684.7,1.14070127]
[1759818938686,0.02296753,4684.8,4684.7,6.14070127]
[1759818938886,3.2078,4685.8,4685.7,0.5299]
[1759818939086,3.2078,4685.8,4685.7,0.9081]
[1759818940078,3.4758,4685.8,4685.7,0.9081]
[1759818940486,4.1449,4685.8,4685.7,0.9081]
[1759818942385,0.38396,4685.6,4685.2,0.3782]
[1759818942591,4.1449,4685.3,4685.2,0.38399]
[1759818942985,6.95492026,4685.3,4685.2,0.38399]
[1759818943180,0.3964,4685.0,4684.9,0.38402]
[1759818943385,1.0902,4685.0,4684.9,0.38402]
[1759818943590,3.91814115,4685.0,4684.8,0.215]
[1759818943791,3.91814115,4685.0,4684.8,0.38402]
[1759818943792,0.9371,4684.9,4684.8,0.38402]
[1759818943986,0.9371,4684.9,4684.8,0.64062]
[1759818944187,3.76504115,4684.9,4684.8,1.29212]
[1759818944600,3.76504115,4684.9,4684.8,0.64062]
[1759818944990,3.76504115,4684.9,4684.8,1.01882]
[1759818945191,3.76504115,4684.9,4684.8,1.29212]
[1759818947193,3.76504115,4684.9,4684.8,0.91392]
[1759818947395,3.76504115,4684.9,4684.8,1.29212]
[1759818948993,2.82794115,4684.9,4684.8,1.29212]
[1759818949294,4.1449,4685.3,4685.2,1.01879]
[1759818949495,4.1449,4685.3,4685.2,1.29209]
[1759818949695,3.7485,4685.3,4685.2,1.29209]
[1759818949897,3.2078,4685.3,4685.2,1.29209]
[1759818950297,0.9371,4685.7,4685.6,0.38396]
[1759818950595,3.7459108,4685.7,4685.6,1.01876]
[1759818951197,4.1298608,4685.7,4685.6,0.64056]
[1759818952097,0.38398,4685.4,4685.2,0.38399]
[1759818952292,0.3964,4685.2,4685.1,0.599]
[1759818952496,0.9371,4685.2,4685.1,0.8556]
[1759818952995,0.9371,4685.2,4685.1,1.0188]
[1759818955204,0.9371,4685.2,4685.1,1.2921]
[1759818956097,0.5407,4685.2,4685.1,1.2921]
[1759818956403,4.3599,4685.9,4685.8,0.6348]
[1759818956603,0.9371,4685.5,4685.4,0.76217]
[1759818956904,4.29675658,4685.5,4685.4,0.38397]
[1759818957402,4.3259877,4685.5,4685.4,0.38397]
[1759818957701,4.3259877,4685.5,4685.4,1.01877]
[1759818958299,4.1728877,4685.5,4685.4,1.29207]
[1759818961402,0.78346964,4685.5,4685.4,1.29207]
[1759818962806,1.45256964,4685.5,4685.4,1.29207]
[1759818963004,1.83653964,4685.5,4685.4,0.9081]
[1759818963202,1.05616964,4685.5,4685.4,0.2566]
[1759818963402,1.05616964,4685.5,4685.4,0.9081]
[1759818963902,1.45256964,4685.5,4685.4,0.9081]
[1759818964301,1.05616964,4685.5,4685.4,0.9081]
[1759818964501,0.51546964,4685.5,4685.4,0.9081]
[1759818964696,0.51546964,4685.5,4685.4,5.9081]
[1759818964897,0.02923112,4685.5,4685.4,5.9081]
[1759818965606,0.02923112,4685.5,4685.4,6.1231]
[1759818968608,0.02923112,4685.5,4685.4,0.9081]
[1759818968811,0.28653112,4685.5,4685.4,1.1231]
[1759818969007,0.02923112,4685.5,4685.4,1.1231]
[1759818973111,0.92913112,4685.5,4685.4,0.9081]
[1759818973310,0.92913112,4685.5,4685.4,1.1231]
[1759818973512,0.92913112,4685.5,4685.4,0.9081]
[1759818973722,0.92913112,4685.5,4685.4,1.1231]
[1759818974304,0.92913112,4685.5,4685.4,0.9081]
[1759818974512,1.08343112,4685.5,4685.4,0.6348]
[1759818974717,1.08343112,4685.5,4685.4,0.215]
[1759818974912,1.08343112,4685.5,4685.3,0.38398]
[1759818975115,1.08343112,4685.5,4684.7,0.96178127]
[1759818975116,0.5114,4684.8,4684.7,0.00170127]
[1759818975314,0.92913112,4684.8,4684.7,0.00170127]
[1759818975620,8.68179816,4684.8,4684.7,0.00170127]
[1759818980118,8.68179816,4684.8,4684.7,0.64670127]
[1759818980321,8.68179816,4684.8,4684.7,0.00170127]
[1759818983720,0.02923112,4684.8,4684.7,5.91510127]
[1759818985725,0.17533758,4686.4,4684.7,5.91510127]
[1759818985726,0.2573,4686.3,4686.2,1.29731]
[1759818986026,3.20982556,4686.4,4686.3,0.9134]
[1759818986027,3.46712556,4686.4,4686.3,0.9134]
[1759818986428,3.49639906,4686.4,4686.3,0.9134]
[1759818986627,3.23909906,4686.4,4686.3,0.9134]
[1759818988332,0.03129906,4686.4,4686.3,0.9134]
[1759818989335,0.03129906,4686.4,4686.3,4.1212]
[1759818989631,3.2078,4687.0,4686.9,0.90915]
[1759818989828,4.0047,4687.0,4686.3,3.2078]
[1759818990028,0.8999,4685.9,4685.8,0.2569]
[1759818990227,0.8999,4685.9,4685.8,0.215]
[1759818990627,0.90149095,4685.9,4685.7,0.38395]
[1759818990833,0.90149095,4685.9,4685.2,3.2078]
[1759818990834,0.5114,4685.3,4685.2,3.2078]
[1759818991139,0.5114,4685.3,4685.2,3.4228]
[1759818991140,0.8999,4685.3,4685.2,3.4228]
[1759818992433,0.8999,4685.3,4685.1,0.384]
[1759818992737,0.8999,4685.2,4685.1,1.244]
[1759818993533,0.5114,4684.8,4684.7,0.00170127]
[1759818993734,0.8999,4684.8,4684.7,0.00170127]
[1759818994038,3.71191098,4684.8,4684.7,0.00170127]
[1759818994437,0.8932,4683.6,4683.5,0.6405]
[1759818994740,0.8932,4683.6,4683.5,1.49293]
[1759818995030,3.5907,4684.2,4683.5,1.2648]
[1759818995231,0.2587,4684.0,4683.9,1.2779]
[1759818995437,0.2587,4684.3,4684.2,1.27787]
[1759818995638,0.2587,4684.3,4684.2,1.49287]
[1759818996934,0.8932,4684.3,4684.2,1.49287]
[1759818997232,0.8932,4684.3,4684.1,0.38408]
[1759818997432,0.8932,4684.3,4683.9,0.00198832]
[1759818997433,1.0262,4684.0,4683.9,0.38608832]
[1759818997633,1.0262,4684.0,4683.9,0.00198832]
[1759818997827,8.77663715,4684.0,4683.9,0.00198832]
[1759818999638,1.0262,4683.0,4682.9,0.02135452]
[1759819000636,1.0262,4683.0,4682.9,0.02315832]
[1759819001442,0.8751,4683.0,4682.9,0.27495832]
[1759819001640,0.8751,4683.0,4682.9,0.63925832]
[1759819002039,3.2078,4683.3,4683.2,0.6161]
[1759819002347,6.21936898,4683.3,4683.2,1.25526]
[1759819002541,0.1511,4683.0,4682.9,0.02315832]
[1759819002844,3.77906898,4683.0,4682.9,0.02315832]
[1759819004243,8.99406898,4683.0,4681.8,3.2078]
[1759819004438,0.366,4681.7,4681.3,3.2078]
[1759819004645,0.1511,4682.0,4681.3,3.2078]